fUST/lending_fUST_20250624
["ID","MTS","AMOUNT","RATE_DAILY","PERIOD"]
[367343658,1750756254653,-460.0,0.00023287,2]
[367343660,1750756254662,-460.0,0.00023287,2]
[367343662,1750756254672,-1317.61,0.00023287,2]
[367343663,1750756254682,-901.35,0.00023287,2]
[367343666,1750756254691,-746.79,0.00023287,2]
[367343668,1750756254701,-1046.58,0.00023287,2]
[367343670,1750756254710,-460.0,0.00023287,2]
[367343672,1750756254719,-900.7,0.00023287,2]
[367343674,1750756254729,-160.0,0.00023287,2]
[367343676,1750756254738,-460.0,0.00023287,2]
[367343678,1750756254748,-1330.85,0.00023287,2]
[367343680,1750756254757,-1466.22,0.00023287,2]
[367343682,1750756254766,-460.0,0.00023287,2]
[367343684,1750756254776,-460.0,0.00023287,2]
[367343686,1750756254786,-2448.455233,0.0002329,4]
[367343688,1750756254795,-425.14181427,0.000233,3]
[367343690,1750756254805,-160.0,0.000233,3]
[367343692,1750756254815,-836.80226758,0.000233,3]
[367343694,1750756254825,-230.20892031,0.000233,3]
[367343696,1750756254834,-1327.94736777,0.00023308,2]
[367343698,1750756254843,-884.70291753,0.00023422,2]
[367343700,1750756254853,-1493.79458129,0.00023435,2]
[367343702,1750756254862,-168.0,0.00023467,2]
[367343704,1750756254872,-744.99325607,0.00023494,2]
[367343706,1750756254881,-2160.0,0.00023497,2]
[367343708,1750756254890,-654.0,0.00023497,2]
[367343710,1750756254901,-406.0,0.00023497,2]
[367343712,1750756254914,-7721.83,0.000235,2]
[367343714,1750756254923,-2000.0,0.00023544,2]
[367343716,1750756254932,-1152.03031421,0.00023544,2]
[367343718,1750756254943,-2000.0,0.00023544,2]
[367343719,1750756254953,-395.59162985,0.0002355,2]
[367343721,1750756254962,-600.0,0.00023554,2]
[367343723,1750756254972,-200.0,0.00023561,2]
[367343725,1750756254984,-200.0,0.00023561,2]
[367343727,1750756254994,-200.0,0.00023561,2]
[367343729,1750756255003,-200.0,0.00023561,2]
[367343731,1750756255013,-200.0,0.00023561,2]
[367343733,1750756255022,-200.0,0.00023561,2]
[367343735,1750756255032,-200.0,0.00023561,2]
[367343737,1750756255040,-200.35973304,0.00023561,2]
[367343739,1750756255049,-460.0,0.00023561,2]
[367343741,1750756255059,-500.0,0.00023561,25]
[367343743,1750756255068,-619.95,0.00023561,2]
[367343745,1750756255077,-500.0,0.00023561,2]
[367343747,1750756255086,-460.0,0.00023561,2]
[367343749,1750756255095,-1003.9,0.00023561,2]
[367343751,1750756255104,-2376.79,0.00023561,2]
[367343753,1750756255114,-2214.61,0.00023561,2]
[367343755,1750756255123,-460.0,0.00023561,2]
[367343757,1750756255133,-758.26,0.00023561,2]
[367343759,1750756255142,-460.0,0.00023561,2]
[367343761,1750756255152,-603.45,0.00023561,2]
[367343763,1750756255162,-496.93,0.00023561,2]
[367343765,1750756255172,-906.27,0.00023561,2]
[367343767,1750756255181,-765.91,0.00023561,2]
[367343769,1750756255192,-1619.14,0.00023561,2]
[367343771,1750756255201,-460.0,0.00023561,2]
[367343773,1750756255211,-7219.34,0.00023561,2]
[367343775,1750756255221,-460.0,0.00023561,2]
[367343777,1750756255231,-460.0,0.00023561,2]
[367343779,1750756255240,-1066.49,0.00023561,2]
[367343781,1750756255249,-610.94,0.00023561,2]
[367343783,1750756255259,-565.53,0.00023561,2]
[367343785,1750756255270,-800.37,0.00023561,2]
[367343787,1750756255281,-460.0,0.00023561,2]
[367343789,1750756255290,-460.0,0.00023561,2]
[367343791,1750756255300,-460.0,0.00023561,2]
[367343793,1750756255310,-460.0,0.00023561,2]
[367343795,1750756255319,-460.0,0.00023561,2]
[367343797,1750756255328,-1317.61,0.00023561,2]
[367343799,1750756255339,-901.35,0.00023561,2]
[367343801,1750756255348,-746.79,0.00023561,2]
[367343803,1750756255359,-1046.58,0.00023561,2]
[367343805,1750756255368,-460.0,0.00023561,2]
[367343807,1750756255378,-900.7,0.00023561,2]
[367343809,1750756255388,-460.0,0.00023561,2]
[367343811,1750756255398,-1330.85,0.00023561,2]
[367343813,1750756255407,-1466.22,0.00023561,2]
[367343815,1750756255416,-460.0,0.00023561,2]
[367343817,1750756255427,-460.0,0.00023561,2]
[367343819,1750756255436,-500.0,0.0002359,9]
[367343821,1750756255445,-500.0,0.0002359,9]
[367343823,1750756255455,-4000.0,0.00023595,2]
[367343825,1750756255464,-151.0,0.000236,9]
[367343827,1750756255473,-180.828108,0.000236,7]
[367343829,1750756255482,-180.828108,0.000236,7]
[367343831,1750756255492,-377.5,0.00023644,6]
[367343833,1750756255501,-300.0,0.00023644,2]
[367343835,1750756255511,-46.89149361,0.00023733,2]
[367343848,1750756255626,-526.83,0.00021917,2]
[367343850,1750756255637,-348.70013626,0.00023733,2]
[367343852,1750756255646,-800.0,0.00023777,2]
[367343854,1750756255656,-1719.938793,0.0002378,5]
[367343856,1750756255667,-282.229522,0.000238,7]
[367343858,1750756255676,-632.06458964,0.000238,7]
[367344004,1750756257114,-0.33889181,0.00019726,2]
[367345573,1750756282697,5000.0,0.000191,2]
[367345578,1750756381279,453.0,0.00024657,120]
[367345579,1750756450643,258.33160415,0.00019078,2]
[367345580,1750756486380,200.0,0.000228,30]
[367345581,1750756493063,200.0,0.000228,30]
[367345582,1750756495432,200.0,0.000228,30]
[367345583,1750756499956,1329.161412,0.00024,30]
[367345584,1750756500273,1329.161412,0.00024,30]
[367345585,1750756500615,1329.161412,0.00024,30]
[367345586,1750756500939,1329.161412,0.00024,30]
[367345587,1750756501280,1329.161412,0.00024,30]
[367345588,1750756582542,454.507267,0.00013699,2]
[367345593,1750756684214,158.990599,0.00024,30]
[367345594,1750756684526,158.990599,0.00024,30]
[367345595,1750756684835,158.990599,0.00024,30]
[367345596,1750756685254,158.990599,0.00024,30]
[367345597,1750756685504,158.990599,0.00024,30]
[367345599,1750756716776,226.04015364,0.00019074,2]
[367345600,1750756807677,85054.21740439,0.00024,30]
[367345601,1750756916061,153.028453,0.00024,30]
[367345602,1750756916353,153.028453,0.00024,30]
[367345603,1750756920636,3906.97939869,0.00018174,2]
[367345604,1750756920659,1401.11572041,0.00018174,2]
[367345605,1750756973346,153.028452,0.00024,30]
[367345606,1750756973635,153.028452,0.00024,30]
[367345607,1750756984873,500.0,0.000191,2]
[367345608,1750756987640,277.03470086,0.00019067,2]
[367345609,1750756989852,500.0,0.000191,2]
[367345610,1750756994461,500.0,0.000191,2]
[367345611,1750756999808,500.0,0.000191,2]
[367345612,1750757004809,500.0,0.000191,2]
[367345613,1750757010104,500.0,0.000191,2]
[367345614,1750757014673,500.0,0.000191,2]
[367345615,1750757023282,500.0,0.000191,2]
[367345616,1750757027757,500.0,0.000191,2]
[367345617,1750757032366,500.0,0.000191,2]
[367345618,1750757037359,500.0,0.000191,2]
[367345622,1750757095205,1957.439264,0.00024,30]
[367345648,1750757237162,2821.84957873,0.00018169,2]
[367345649,1750757237187,10000.0,0.00018169,2]
[367345650,1750757237212,10000.0,0.00018169,2]
[367345651,1750757237236,2078.15042127,0.00018169,2]
[367345655,1750757257893,400.90449605,0.00019066,2]
[367345663,1750757318758,301.999999,0.0002,120]
[367345673,1750757432433,-300.0,0.00019163,2]
[367345674,1750757432443,-300.0,0.00019163,2]
[367345676,1750757432452,-1200.0,0.00019163,2]
[367345678,1750757432462,-300.0,0.00019163,2]
[367345680,1750757432471,-300.0,0.00019163,2]
[367345682,1750757432480,-500.0,0.00019164,2]
[367345683,1750757432489,-500.0,0.00019164,2]
[367345686,1750757432500,-500.0,0.00019164,2]
[367345687,1750757432510,-500.0,0.00019164,2]
[367345690,1750757432521,-500.0,0.00019164,2]
[367345691,1750757432530,-500.0,0.00019164,2]
[367345693,1750757432540,-500.0,0.00019164,2]
[367345694,1750757432550,-500.0,0.00019164,2]
[367345695,1750757432561,-500.0,0.00019164,2]
[367345696,1750757432570,-500.0,0.00019164,2]
[367345697,1750757432579,-500.0,0.00019164,2]
[367345698,1750757432588,-332.6337894,0.00019164,2]
[367345699,1750757432600,-167.3662106,0.00019164,2]
[367345700,1750757432609,-500.0,0.00019164,2]
[367345702,1750757432618,-521.74984597,0.00019164,2]
[367345704,1750757432628,-500.0,0.00019164,2]
[367345706,1750757432637,-500.0,0.00019164,2]
[367345708,1750757432646,-500.0,0.00019164,2]
[367345710,1750757432655,-500.0,0.00019164,2]
[367345712,1750757432664,-500.0,0.00019164,2]
[367345714,1750757432673,-500.0,0.00019164,2]
[367345716,1750757432683,-500.0,0.00019164,2]
[367345718,1750757432692,-500.0,0.00019164,2]
[367345720,1750757432702,-555.0,0.00019164,2]
[367345722,1750757432711,-500.0,0.00019164,2]
[367345724,1750757432720,-500.0,0.00019164,2]
[367345726,1750757432729,-500.0,0.00019164,2]
[367345728,1750757432738,-500.0,0.00019164,2]
[367345730,1750757432747,-500.0,0.00019164,2]
[367345732,1750757432757,-500.0,0.00019164,2]
[367345734,1750757432767,-500.0,0.00019164,2]
[367345736,1750757432776,-500.0,0.00019164,2]
[367345738,1750757432785,-500.0,0.00019164,2]
[367345740,1750757432794,-500.0,0.00019164,2]
[367345742,1750757432804,-500.0,0.00019164,2]
[367345744,1750757432813,-500.0,0.00019164,2]
[367345746,1750757432822,-500.0,0.00019164,2]
[367345748,1750757432831,-500.0,0.00019164,2]
[367345750,1750757432840,-500.0,0.00019164,2]
[367345752,1750757432849,-500.0,0.00019164,2]
[367345754,1750757432858,-641.55873004,0.00019164,2]
[367345756,1750757432867,-500.0,0.00019164,2]
[367345758,1750757432876,-500.0,0.00019164,2]
[367345760,1750757432885,-500.0,0.00019164,2]
[367345761,1750757432895,-500.0,0.00019164,2]
[367345762,1750757432904,-504.01949284,0.00019164,2]
[367345763,1750757432913,-500.0,0.00019164,2]
[367345764,1750757432923,-500.0,0.00019164,2]
[367345765,1750757432932,-500.0,0.00019164,2]
[367345766,1750757432942,-439.6468626,0.00019164,2]
[367345767,1750757432951,-300.0,0.00019164,2]
[367345768,1750757432961,-50000.0,0.00019165,2]
[367345769,1750757432970,-500.0,0.00019165,2]
[367345770,1750757432979,-500.0,0.00019165,2]
[367345772,1750757432988,-1552.34,0.00019168,3]
[367345774,1750757432998,-776.17,0.00019168,3]
[367345776,1750757433007,-388.09,0.00019168,3]
[367345778,1750757433016,-194.04,0.00019168,3]
[367345780,1750757433026,-582.17,0.00019168,3]
[367345782,1750757433036,-1000.0,0.00019177,2]
[367345784,1750757433045,-1000.0,0.00019177,2]
[367345786,1750757433055,-1000.0,0.00019177,2]
[367345788,1750757433065,-1000.0,0.00019177,2]
[367345790,1750757433075,-181.02,0.00019177,2]
[367345792,1750757433084,-460.0,0.00019178,2]
[367345794,1750757433094,-541.95063258,0.00019178,2]
[367345796,1750757433104,-460.0,0.00019178,2]
[367345798,1750757433113,-460.0,0.00019178,2]
[367345800,1750757433123,-460.0,0.00019178,2]
[367345802,1750757433132,-460.0,0.00019178,2]
[367345820,1750757433311,-460.0,0.00019178,2]
[367345822,1750757433320,-460.0,0.00019178,2]
[367345824,1750757433330,-460.0,0.00019178,2]
[367345826,1750757433339,-460.0,0.00019178,2]
[367345828,1750757433350,-460.0,0.00019178,2]
[367345830,1750757433359,-51.11115727,0.00019178,2]
[367345832,1750757433372,-408.88884273,0.00019178,2]
[367345834,1750757433382,-460.0,0.00019178,2]
[367345836,1750757433391,-121.17463255,0.00019178,2]
[367346184,1750757446628,-500.0,0.00019164,2]
[367346185,1750757446638,-500.0,0.00019164,2]
[367346186,1750757446647,-430.83712898,0.00019164,2]
[367346187,1750757528448,350.79143407,0.00019064,2]
[367346188,1750757569612,431.781903,0.00013699,2]
[367346190,1750757696961,2381.922966,0.00024,30]
[367346191,1750757801858,150.0,0.0002335,30]
[367346192,1750757803716,430.10323881,0.00019067,2]
[367346193,1750757840536,450.0,0.000191,2]
[367346194,1750757844094,5858.2685068,0.00018169,2]
[367346195,1750757844116,3177.1582651,0.00018169,2]
[367346196,1750758063507,4527.3038506,0.00018164,2]
[367346197,1750758088917,376.34033395,0.00019068,2]
[367346198,1750758126861,406.79877746,0.00017967,2]
[367346199,1750758127258,406.79877746,0.00018316,2]
[367346200,1750758127693,406.79877746,0.00018437,2]
[367346201,1750758128158,406.79877746,0.00018885,2]
[367346202,1750758128572,292.00244051,0.00018983,2]
[367346203,1750758128595,114.79633698,0.00018983,2]
[367346204,1750758291714,1905.538373,0.00024,30]
[367346205,1750758339642,9885.20366302,0.00018168,2]
[367346206,1750758339674,10000.0,0.00018168,2]
[367346207,1750758339699,5014.79633698,0.00018168,2]
[367346208,1750758342443,1000.0,0.00024,30]
[367346209,1750758343530,1000.0,0.00024,30]
[367346210,1750758369169,329.29779218,0.00019057,2]
[367346211,1750758398377,800.0,0.00018691,2]
[367346222,1750758632634,-300.0,0.00019154,2]
[367346224,1750758632644,-300.0,0.00019154,2]
[367346226,1750758632656,-1200.0,0.00019154,2]
[367346228,1750758632665,-300.0,0.00019154,2]
[367346230,1750758632674,-500.0,0.00019155,2]
[367346233,1750758632684,-500.0,0.00019155,2]
[367346235,1750758632693,-500.0,0.00019155,2]
[367346238,1750758632702,-403.35617508,0.00019155,2]
[367346240,1750758632711,-500.0,0.00019155,2]
[367346242,1750758632720,-500.0,0.00019155,2]
[367346244,1750758632730,-500.0,0.00019155,2]
[367346246,1750758632739,-500.0,0.00019155,2]
[367346248,1750758632748,-500.0,0.00019155,2]
[367346250,1750758632757,-500.0,0.00019155,2]
[367346252,1750758632766,-495.66859933,0.00019155,2]
[367346254,1750758632775,-500.0,0.00019155,2]
[367346255,1750758632785,-241.82898424,0.00019155,2]
[367346256,1750758632794,-500.0,0.00019155,2]
[367346257,1750758632803,-500.0,0.00019155,2]
[367346258,1750758632813,-167.11327698,0.00019155,2]
[367346259,1750758632822,-500.0,0.00019155,2]
[367346260,1750758632831,-500.0,0.00019155,2]
[367346261,1750758632841,-333.36424526,0.00019155,2]
[367346262,1750758632850,-500.0,0.00019155,2]
[367346263,1750758632859,-315.29166661,0.00019155,2]
[367346264,1750758632870,-500.0,0.00019155,2]
[367346265,1750758632879,-500.0,0.00019155,2]
[367346266,1750758632889,-500.0,0.00019155,2]
[367346267,1750758632898,-647.86780566,0.00019155,2]
[367346310,1750758638774,-0.16856249,0.00019155,2]
[367346312,1750758638784,-500.0,0.00019155,2]
[367346314,1750758638794,-500.0,0.00019155,2]
[367346316,1750758638804,-500.0,0.00019155,2]
[367346317,1750758638813,-500.0,0.00019155,2]
[367346319,1750758638822,-500.0,0.00019155,2]
[367346322,1750758638833,-500.0,0.00019155,2]
[367346324,1750758638842,-500.0,0.00019155,2]
[367346326,1750758638851,-500.0,0.00019155,2]
[367346329,1750758638861,-500.0,0.00019155,2]
[367346332,1750758638870,-500.0,0.00019155,2]
[367346334,1750758638880,-500.0,0.00019155,2]
[367346335,1750758638889,-500.0,0.00019155,2]
[367346337,1750758638898,-500.0,0.00019155,2]
[367346339,1750758638908,-500.0,0.00019155,2]
[367346341,1750758638918,-500.0,0.00019155,2]
[367346343,1750758638927,-500.0,0.00019155,2]
[367346345,1750758638936,-500.0,0.00019155,2]
[367346346,1750758638945,-500.0,0.00019155,2]
[367346348,1750758638954,-500.0,0.00019155,2]
[367346350,1750758638964,-500.0,0.00019155,2]
[367346352,1750758638973,-500.0,0.00019155,2]
[367346354,1750758638982,-574.96266844,0.00019155,2]
[367346356,1750758638991,-574.96266844,0.00019155,2]
[367346357,1750758639001,-574.96266844,0.00019155,2]
[367346359,1750758639011,-574.96266844,0.00019155,2]
[367346361,1750758639021,-574.96266844,0.00019155,2]
[367346363,1750758639031,-574.96266844,0.00019155,2]
[367346365,1750758639040,-50000.0,0.00019156,2]
[367346367,1750758639049,-300.0,0.00019156,2]
[367346369,1750758639059,-251.6667956,0.00019166,2]
[367346370,1750758639068,-156.96748922,0.00019166,2]
[367346372,1750758639078,-493.29,0.00019168,3]
[367346374,1750758639088,-2269.61,0.00019168,3]
[367346376,1750758639097,-1134.8,0.00019168,3]
[367346378,1750758639106,-567.4,0.00019168,3]
[367346380,1750758639115,-283.7,0.00019168,3]
[367346382,1750758639125,-851.13,0.00019168,3]
[367346383,1750758639135,-493.28,0.00019168,3]
[367346385,1750758639144,-246.64,0.00019168,3]
[367346387,1750758639153,-739.97,0.00019168,3]
[367346389,1750758639162,-1000.0,0.00019173,2]
[367346391,1750758639171,-955.89314851,0.00019174,2]
[367346393,1750758639181,-193.21,0.00019177,2]
[367346394,1750758639190,-421.33972175,0.00019178,2]
[367346396,1750758639199,-460.0,0.00019178,2]
[367346398,1750758639207,-460.0,0.00019178,2]
[367346400,1750758639217,-460.0,0.00019178,2]
[367346402,1750758639227,-460.0,0.00019178,2]
[367346404,1750758639237,-460.0,0.00019178,2]
[367346405,1750758639247,-233.37260427,0.00019178,2]
[367346407,1750758639256,-460.0,0.00019178,2]
[367346409,1750758639265,-460.0,0.00019178,2]
[367346411,1750758639274,-460.0,0.00019178,2]
[367346413,1750758639285,-460.0,0.00019178,2]
[367346415,1750758639294,-552.86,0.00019178,2]
[367346416,1750758639303,-460.0,0.00019178,2]
[367346418,1750758639312,-460.0,0.00019178,2]
[367346420,1750758639321,-263.58212928,0.00019178,2]
[367346422,1750758639330,-572.81,0.00019178,2]
[367346424,1750758639339,-460.0,0.00019178,2]
[367346426,1750758639348,-460.0,0.00019178,2]
[367346427,1750758639357,-460.0,0.00019178,2]
[367346429,1750758639366,-460.0,0.00019178,2]
[367346431,1750758639376,-501.92,0.00019178,2]
[367346433,1750758639385,-460.0,0.00019178,2]
[367346435,1750758639394,-460.0,0.00019178,2]
[367346437,1750758639403,-460.0,0.00019178,2]
[367346438,1750758639411,-460.0,0.00019178,2]
[367346440,1750758639421,-460.0,0.00019178,2]
[367346442,1750758639430,-460.0,0.00019178,2]
[367346444,1750758639440,-460.0,0.00019178,2]
[367346446,1750758639449,-460.0,0.00019178,2]
[367346448,1750758639458,-460.0,0.00019178,2]
[367346449,1750758639467,-460.0,0.00019178,2]
[367346451,1750758639477,-349.6016524,0.00019178,2]
[367346453,1750758639486,-460.0,0.00019178,2]
[367346455,1750758639495,-460.0,0.00019178,2]
[367346457,1750758639504,-460.0,0.00019178,2]
[367346459,1750758639513,-460.0,0.00019178,2]
[367346460,1750758639522,-460.0,0.00019178,2]
[367346462,1750758639531,-671.28,0.00019178,2]
[367346464,1750758639540,-460.0,0.00019178,2]
[367346466,1750758639549,-460.0,0.00019178,2]
[367346489,1750758639781,-460.0,0.00019178,2]
[367346492,1750758639792,-460.0,0.00019178,2]
[367346494,1750758639802,-460.0,0.00019178,2]
[367346496,1750758639812,-460.0,0.00019178,2]
[367346498,1750758639821,-460.0,0.00019178,2]
[367346500,1750758639831,-460.0,0.00019178,2]
[367346501,1750758639841,-460.0,0.00019178,2]
[367346504,1750758639850,-460.0,0.00019178,2]
[367346505,1750758639860,-424.27,0.00019178,2]
[367346507,1750758639869,-460.0,0.00019178,2]
[367346509,1750758639878,-460.0,0.00019178,2]
[367346511,1750758639888,-460.0,0.00019178,2]
[367346513,1750758639897,-576.96873525,0.00019178,2]
[367346515,1750758639906,-460.0,0.00019178,2]
[367346517,1750758639915,-460.0,0.00019178,2]
[367346519,1750758639924,-460.0,0.00019178,2]
[367346521,1750758639933,-460.0,0.00019178,2]
[367346523,1750758639943,-460.0,0.00019178,2]
[367346525,1750758639952,-460.0,0.00019178,2]
[367346527,1750758639962,-1241.58,0.00019178,2]
[367346529,1750758639971,-460.0,0.00019178,2]
[367346531,1750758639981,-460.0,0.00019178,2]
[367346533,1750758639990,-460.0,0.00019178,2]
[367346534,1750758640000,-460.0,0.00019178,2]
[367346535,1750758640009,-460.0,0.00019178,2]
[367346536,1750758640019,-519.66,0.00019178,2]
[367346537,1750758640029,-584.23812289,0.00019178,2]
[367346538,1750758640038,-460.0,0.00019178,2]
[367346539,1750758640048,-460.0,0.00019178,2]
[367346540,1750758640059,-460.0,0.00019178,2]
[367346541,1750758640068,-460.0,0.00019178,2]
[367346542,1750758640078,-460.0,0.00019178,2]
[367346543,1750758640087,-440.0,0.00019178,2]
[367346544,1750758640096,-460.0,0.00019178,2]
[367346545,1750758640106,-460.0,0.00019178,2]
[367346546,1750758640115,-460.0,0.00019178,2]
[367346548,1750758640125,-460.0,0.00019178,2]
[367346549,1750758640134,-460.0,0.00019178,2]
[367346550,1750758640143,-460.0,0.00019178,2]
[367346551,1750758640156,-500.0,0.00019178,2]
[367346552,1750758640166,-460.0,0.00019178,2]
[367346553,1750758640175,-828.86,0.00019178,2]
[367346554,1750758640185,-460.0,0.00019178,2]
[367346555,1750758640194,-460.0,0.00019178,2]
[367346556,1750758640204,-460.0,0.00019178,2]
[367346557,1750758640213,-460.0,0.00019178,2]
[367346558,1750758640223,-460.0,0.00019178,2]
[367346559,1750758640233,-460.0,0.00019178,2]
[367346560,1750758640243,-460.0,0.00019178,2]
[367346561,1750758640252,-562.0,0.00019178,2]
[367346562,1750758640262,-460.0,0.00019178,2]
[367346563,1750758640272,-338.16728226,0.00019178,2]
[367346564,1750758640281,-460.0,0.00019178,2]
[367346565,1750758640291,-460.0,0.00019178,2]
[367346566,1750758640300,-151.0,0.00019178,2]
[367346567,1750758640310,-154.16487973,0.00019178,2]
[367346568,1750758640319,-1268.97,0.00019178,2]
[367346569,1750758640329,-460.0,0.00019178,2]
[367346570,1750758640338,-460.0,0.00019178,2]
[367346571,1750758640348,-3741.09,0.00019178,2]
[367346572,1750758640359,-460.0,0.00019178,2]
[367346573,1750758640369,-460.0,0.00019178,2]
[367346574,1750758640378,-460.0,0.00019178,2]
[367346575,1750758640389,-460.0,0.00019178,2]
[367346576,1750758640400,-460.0,0.00019178,2]
[367346577,1750758640410,-460.0,0.00019178,2]
[367346578,1750758640419,-460.0,0.00019178,2]
[367346579,1750758640428,-460.0,0.00019178,2]
[367346581,1750758640438,-460.0,0.00019178,2]
[367346582,1750758640447,-460.0,0.00019178,2]
[367346583,1750758640456,-460.0,0.00019178,2]
[367346585,1750758640466,-460.0,0.00019178,2]
[367346586,1750758640475,-460.0,0.00019178,2]
[367346588,1750758640484,-460.0,0.00019178,2]
[367346589,1750758640493,-460.0,0.00019178,2]
[367346590,1750758640502,-460.0,0.00019178,2]
[367346592,1750758640511,-460.0,0.00019178,2]
[367346594,1750758640522,-3206.19,0.00019178,2]
[367346596,1750758640533,-460.0,0.00019178,2]
[367346598,1750758640542,-500.0,0.00019178,2]
[367346600,1750758640552,-3172.49,0.00019178,2]
[367346602,1750758640562,-500.0,0.00019178,2]
[367346604,1750758640572,-151.0,0.00019178,2]
[367346606,1750758640582,-2041.96,0.00019178,2]
[367346608,1750758640592,-460.0,0.00019178,2]
[367346610,1750758640602,-460.0,0.00019178,2]
[367346612,1750758640611,-151.0,0.00019178,2]
[367346614,1750758640622,-460.0,0.00019178,2]
[367346616,1750758640632,-826.01,0.00019178,2]
[367346618,1750758640642,-460.0,0.00019178,2]
[367346620,1750758640652,-431.35954067,0.00019178,2]
[367346623,1750758640663,-1322.08,0.00019178,2]
[367346625,1750758640673,-486.03,0.00019178,2]
[367346627,1750758640691,-460.0,0.00019178,2]
[367346629,1750758640701,-419.19801869,0.00019178,2]
[367346631,1750758640710,-460.0,0.00019178,2]
[367346633,1750758640720,-460.0,0.00019178,2]
[367346635,1750758640730,-460.0,0.00019178,2]
[367346637,1750758640740,-597.25,0.00019178,2]
[367346638,1750758640749,-741.0,0.00019178,2]
[367346640,1750758640759,-460.0,0.00019178,2]
[367346642,1750758640769,-460.0,0.00019178,2]
[367346644,1750758640778,-460.0,0.00019178,2]
[367346646,1750758640787,-500.0,0.00019178,2]
[367346648,1750758640797,-500.0,0.00019178,2]
[367346651,1750758640807,-460.0,0.00019178,2]
[367346653,1750758640816,-460.0,0.00019178,2]
[367346654,1750758640826,-1820.89,0.00019178,2]
[367346656,1750758640836,-460.0,0.00019178,2]
[367346658,1750758640845,-460.0,0.00019178,2]
[367346661,1750758640855,-460.0,0.00019178,2]
[367346663,1750758640865,-460.0,0.00019178,2]
[367346665,1750758640875,-460.0,0.00019178,2]
[367346667,1750758640884,-460.0,0.00019178,2]
[367346668,1750758640894,-460.0,0.00019178,2]
[367346670,1750758640903,-460.0,0.00019178,2]
[367346672,1750758640914,-460.0,0.00019178,2]
[367346675,1750758640924,-460.0,0.00019178,2]
[367346677,1750758640934,-460.0,0.00019178,2]
[367346678,1750758640943,-460.0,0.00019178,2]
[367346681,1750758640953,-2393.21,0.00019178,2]
[367346683,1750758640964,-2176.1,0.00019178,2]
[367346684,1750758640974,-460.0,0.00019178,2]
[367346686,1750758640983,-460.0,0.00019178,2]
[367346688,1750758640993,-554.63,0.00019178,2]
[367346690,1750758641003,-460.0,0.00019178,2]
[367346693,1750758641014,-460.0,0.00019178,2]
[367346694,1750758641023,-1530.51,0.00019178,2]
[367346696,1750758641032,-460.0,0.00019178,2]
[367346698,1750758641042,-460.0,0.00019178,2]
[367346700,1750758641051,-460.0,0.00019178,2]
[367346702,1750758641060,-460.0,0.00019178,2]
[367346704,1750758641070,-460.0,0.00019178,2]
[367346706,1750758641079,-460.0,0.00019178,2]
[367346708,1750758641088,-460.0,0.00019178,2]